[Event "Titled Tuesday Blitz April 25 Late 2023"]
[White "Kuzmin, Roman"]
[Black "Bitoon, Richard"]
[WhiteFideId "44134932"]
[BlackFideId "5201110"]
[WhiteElo "2192"]
[BlackElo "2374"]
[Result "1/2-1/2"]
[Round "10"]
[TimeControl "180+2"]
[Date "2023.04.25"]
[WhiteClock "0:00:05"]
[BlackClock "0:00:07"]

1. e4 {[%clk 0:03:00]}  e5 {[%clk 0:02:58]} 2. Nf3 {[%clk 0:03:00]}  Nc6 {[%clk 0:02:57]} 3. Bb5 {[%clk 0:03:00]}  a6 {[%clk 0:02:58]} 4. Ba4 {[%clk 0:03:00]}  Nf6 {[%clk 0:02:58]} 5. O-O {[%clk 0:03:01]}  b5 {[%clk 0:02:59]} 6. Bb3 {[%clk 0:03:00]}  Bb7 {[%clk 0:03:00]} 7. Re1 {[%clk 0:02:48]}  Bc5 {[%clk 0:02:51]} 8. c3 {[%clk 0:02:48]}  d6 {[%clk 0:02:51]} 9. d4 {[%clk 0:02:47]}  Bb6 {[%clk 0:02:52]} 10. Be3 {[%clk 0:02:36]}  O-O {[%clk 0:02:52]} 11. Nbd2 {[%clk 0:02:36]}  Re8 {[%clk 0:02:48]} 12. dxe5 {[%clk 0:02:14]}  Nxe5 {[%clk 0:02:45]} 13. Bxb6 {[%clk 0:02:08]}  cxb6 {[%clk 0:02:35]} 14. Qc2 {[%clk 0:01:40]}  Nxf3+ {[%clk 0:02:33]} 15. gxf3 {[%clk 0:01:24]}  Nh5 {[%clk 0:02:34]} 16. Nf1 {[%clk 0:01:24]}  Nf4 {[%clk 0:02:25]} 17. Ng3 {[%clk 0:01:23]}  Qh4 {[%clk 0:02:22]} 18. Kh1 {[%clk 0:01:21]}  d5 {[%clk 0:02:12]} 19. Re3 {[%clk 0:01:12]}  Re5 {[%clk 0:02:00]} 20. Rg1 {[%clk 0:01:08]}  Rae8 {[%clk 0:01:58]} 21. Nf5 {[%clk 0:01:00]}  Rxf5 {[%clk 0:01:18]} 22. exf5 {[%clk 0:01:01]}  Rd8 {[%clk 0:01:16]} 23. Rg4 {[%clk 0:00:44]}  Qh3 {[%clk 0:01:16]} 24. Qd1 {[%clk 0:00:32]}  Nh5 {[%clk 0:01:13]} 25. Re7 {[%clk 0:00:27]}  Bc6 {[%clk 0:01:06]} 26. Kg1 {[%clk 0:00:18]}  Nf6 {[%clk 0:01:02]} 27. Rg3 {[%clk 0:00:12]}  Qxf5 {[%clk 0:01:02]} 28. Qd4 {[%clk 0:00:13]}  Kf8 {[%clk 0:01:01]} 29. Re5 {[%clk 0:00:11]}  Qb1+ {[%clk 0:01:00]} 30. Kg2 {[%clk 0:00:12]}  Rb8 {[%clk 0:00:53]} 31. Reg5 {[%clk 0:00:12]}  h6 {[%clk 0:00:26]} 32. Rxg7 {[%clk 0:00:11]}  Qf5 {[%clk 0:00:26]} 33. Bc2 {[%clk 0:00:05]}  Qe6 {[%clk 0:00:26]} 34. Qh4 {[%clk 0:00:02]}  h5 {[%clk 0:00:10]} 35. Qg5 {[%clk 0:00:02]}  Rd8 {[%clk 0:00:07]} 36. Bf5 {[%clk 0:00:02]}  Qe5 {[%clk 0:00:06]} 37. Rg8+ {[%clk 0:00:03]}  Ke7 {[%clk 0:00:04]} 38. Rxd8 {[%clk 0:00:03]}  Kxd8 {[%clk 0:00:05]} 39. Bd3 {[%clk 0:00:03]}  Qe6 {[%clk 0:00:03]} 40. Qf5 {[%clk 0:00:03]}  Ke7 {[%clk 0:00:03]} 41. Rg5 {[%clk 0:00:03]}  d4 {[%clk 0:00:03]} 42. Qxe6+ {[%clk 0:00:03]}  Kxe6 {[%clk 0:00:03]} 43. cxd4 {[%clk 0:00:03]}  Nd5 {[%clk 0:00:04]} 44. Re5+ {[%clk 0:00:03]}  Kd6 {[%clk 0:00:04]} 45. Be4 {[%clk 0:00:03]}  f6 {[%clk 0:00:04]} 46. Rxh5 {[%clk 0:00:02]}  Nf4+ {[%clk 0:00:04]} 47. Kg3 {[%clk 0:00:03]}  Nxh5+ {[%clk 0:00:05]} 48. Kh4 {[%clk 0:00:03]}  Nf4 {[%clk 0:00:05]} 49. Kg4 {[%clk 0:00:03]}  Ne6 {[%clk 0:00:05]} 50. Kf5 {[%clk 0:00:03]}  Nxd4+ {[%clk 0:00:05]} 51. Kxf6 {[%clk 0:00:04]}  Nxf3 {[%clk 0:00:06]} 52. Bxc6 {[%clk 0:00:02]}  Kxc6 {[%clk 0:00:07]} 53. h3 {[%clk 0:00:02]}  b4 {[%clk 0:00:07]} 54. Kf5 {[%clk 0:00:02]}  Kd6 {[%clk 0:00:07]} 55. Kg4 {[%clk 0:00:03]}  Ne5+ {[%clk 0:00:08]} 56. Kg5 {[%clk 0:00:03]}  Ke6 {[%clk 0:00:08]} 57. f4 {[%clk 0:00:03]}  Nf3+ {[%clk 0:00:07]} 58. Kg6 {[%clk 0:00:04]}  Nh4+ {[%clk 0:00:07]} 59. Kg5 {[%clk 0:00:04]}  Nf5 {[%clk 0:00:08]} 60. h4 {[%clk 0:00:05]}  Nd4 {[%clk 0:00:06]} 61. h5 {[%clk 0:00:05]}  Kf7 {[%clk 0:00:07]} 62. h6 {[%clk 0:00:04]}  Ne6+ {[%clk 0:00:07]} 63. Kf5 {[%clk 0:00:04]}  Nd4+ {[%clk 0:00:05]} 64. Ke5 {[%clk 0:00:04]}  Ne2 {[%clk 0:00:05]} 65. f5 {[%clk 0:00:05]}  Ng3 {[%clk 0:00:05]} 66. f6 {[%clk 0:00:02]}  Nh5 {[%clk 0:00:05]} 67. h7 {[%clk 0:00:02]}  Nf4 {[%clk 0:00:04]} 68. Kd6 {[%clk 0:00:01]}  Ng6 {[%clk 0:00:04]} 69. Kc6 {[%clk 0:00:02]}  b3 {[%clk 0:00:02]} 70. axb3 {[%clk 0:00:02]}  Kxf6 {[%clk 0:00:03]} 71. Kxb6 {[%clk 0:00:02]}  Kg7 {[%clk 0:00:04]} 72. Kxa6 {[%clk 0:00:03]}  Kxh7 {[%clk 0:00:04]} 73. b4 {[%clk 0:00:04]}  Kg7 {[%clk 0:00:05]} 74. b5 {[%clk 0:00:04]}  Ne5 {[%clk 0:00:06]} 75. b6 {[%clk 0:00:05]}  Kf6 {[%clk 0:00:06]} 76. b7 {[%clk 0:00:05]}  Nd7 {[%clk 0:00:06]} 77. b4 {[%clk 0:00:04]}  Ke6 {[%clk 0:00:06]} 78. b5 {[%clk 0:00:04]}  Kd6 {[%clk 0:00:06]} 79. Ka7 {[%clk 0:00:04]}  Kc5 {[%clk 0:00:07]} 80. b6 {[%clk 0:00:04]}  Kc6 {[%clk 0:00:06]} 81. b8=Q {[%clk 0:00:04]}  Nxb8 {[%clk 0:00:07]} 82. Kxb8 {[%clk 0:00:05]}  Kxb6 {[%clk 0:00:07]} 1/2-1/2


[Site "https://www.chess.com"]

[Event "Titled Tuesday Blitz April 25 Late 2023"]
[White "Karamsetty, Jeevan"]
[Black "Adla, Diego"]
[WhiteFideId "2025337"]
[BlackFideId "100072"]
[WhiteElo "2111"]
[BlackElo "2377"]
[Result "0-1"]
[Round "10"]
[TimeControl "180+2"]
[Date "2023.04.25"]
[WhiteClock "0:00:09"]
[BlackClock "0:00:33"]

1. e4 {[%clk 0:03:00]}  e5 {[%clk 0:02:56]} 2. Nf3 {[%clk 0:02:59]}  Nc6 {[%clk 0:02:56]} 3. d4 {[%clk 0:03:00]}  exd4 {[%clk 0:02:56]} 4. Bc4 {[%clk 0:03:01]}  Nf6 {[%clk 0:02:56]} 5. O-O {[%clk 0:03:00]}  Nxe4 {[%clk 0:02:56]} 6. Re1 {[%clk 0:03:00]}  d5 {[%clk 0:02:56]} 7. Bxd5 {[%clk 0:03:00]}  Qxd5 {[%clk 0:02:56]} 8. Nc3 {[%clk 0:03:01]}  Qh5 {[%clk 0:02:57]} 9. Nxe4 {[%clk 0:03:01]}  Be6 {[%clk 0:02:57]} 10. Bg5 {[%clk 0:03:01]}  Bd6 {[%clk 0:02:57]} 11. Nxd6+ {[%clk 0:03:00]}  cxd6 {[%clk 0:02:57]} 12. Bf4 {[%clk 0:03:00]}  Qd5 {[%clk 0:02:57]} 13. c3 {[%clk 0:03:00]}  Qf5 {[%clk 0:02:57]} 14. cxd4 {[%clk 0:02:35]}  Qxf4 {[%clk 0:02:53]} 15. d5 {[%clk 0:02:36]}  O-O {[%clk 0:02:49]} 16. dxe6 {[%clk 0:02:35]}  fxe6 {[%clk 0:02:46]} 17. Rxe6 {[%clk 0:02:25]}  Ne5 {[%clk 0:02:45]} 18. Nxe5 {[%clk 0:01:05]}  Qxf2+ {[%clk 0:02:39]} 19. Kh1 {[%clk 0:01:05]}  dxe5 {[%clk 0:02:40]} 20. Rxe5 {[%clk 0:01:02]}  Qxb2 {[%clk 0:02:34]} 21. Qd5+ {[%clk 0:00:57]}  Kh8 {[%clk 0:02:34]} 22. Rae1 {[%clk 0:00:56]}  h6 {[%clk 0:02:27]} 23. h3 {[%clk 0:00:52]}  Rad8 {[%clk 0:02:23]} 24. Qe4 {[%clk 0:00:46]}  b6 {[%clk 0:02:19]} 25. a4 {[%clk 0:00:44]}  Qf2 {[%clk 0:02:10]} 26. Re7 {[%clk 0:00:39]}  Rf7 {[%clk 0:02:07]} 27. Re6 {[%clk 0:00:30]}  Rdf8 {[%clk 0:01:59]} 28. Rg1 {[%clk 0:00:27]}  Qc5 {[%clk 0:01:54]} 29. Re5 {[%clk 0:00:22]}  Qa3 {[%clk 0:01:49]} 30. Qc2 {[%clk 0:00:11]}  Qg3 {[%clk 0:01:37]} 31. Ree1 {[%clk 0:00:05]}  Rf2 {[%clk 0:01:31]} 32. Qc6 {[%clk 0:00:05]}  Qh4 {[%clk 0:01:20]} 33. Re8 {[%clk 0:00:04]}  Qf6 {[%clk 0:01:11]} 34. Qc8 {[%clk 0:00:04]}  Rxe8 {[%clk 0:01:04]} 35. Qxe8+ {[%clk 0:00:05]}  Kh7 {[%clk 0:01:05]} 36. Qe4+ {[%clk 0:00:05]}  Qg6 {[%clk 0:01:00]} 37. Qc4 {[%clk 0:00:05]}  Rc2 {[%clk 0:00:53]} 38. Qb3 {[%clk 0:00:04]}  Qe4 {[%clk 0:00:50]} 39. Qb1 {[%clk 0:00:04]}  Rc4 {[%clk 0:00:47]} 40. Qxe4+ {[%clk 0:00:04]}  Rxe4 {[%clk 0:00:47]} 41. Ra1 {[%clk 0:00:04]}  a5 {[%clk 0:00:46]} 42. Rb1 {[%clk 0:00:03]}  Rb4 {[%clk 0:00:46]} 43. Ra1 {[%clk 0:00:02]}  Kg6 {[%clk 0:00:46]} 44. Kh2 {[%clk 0:00:02]}  Kf5 {[%clk 0:00:46]} 45. Kg3 {[%clk 0:00:03]}  Ke4 {[%clk 0:00:47]} 46. Kg4 {[%clk 0:00:04]}  Kd3+ {[%clk 0:00:47]} 47. Kh5 {[%clk 0:00:04]}  Kc2 {[%clk 0:00:44]} 48. Kg6 {[%clk 0:00:05]}  Kb2 {[%clk 0:00:44]} 49. Re1 {[%clk 0:00:05]}  Rxa4 {[%clk 0:00:44]} 50. Kxg7 {[%clk 0:00:05]}  h5 {[%clk 0:00:44]} 51. Re5 {[%clk 0:00:04]}  h4 {[%clk 0:00:43]} 52. Kg6 {[%clk 0:00:03]}  Rb4 {[%clk 0:00:42]} 53. Kg5 {[%clk 0:00:03]}  a4 {[%clk 0:00:42]} 54. Re2+ {[%clk 0:00:03]}  Kb3 {[%clk 0:00:41]} 55. Re3+ {[%clk 0:00:03]}  Kc2 {[%clk 0:00:39]} 56. g3 {[%clk 0:00:03]}  hxg3 {[%clk 0:00:38]} 57. Rxg3 {[%clk 0:00:04]}  b5 {[%clk 0:00:37]} 58. h4 {[%clk 0:00:04]}  Rb3 {[%clk 0:00:37]} 59. Rg2+ {[%clk 0:00:05]}  Kd1 {[%clk 0:00:37]} 60. h5 {[%clk 0:00:06]}  Rh3 {[%clk 0:00:37]} 61. h6 {[%clk 0:00:06]}  a3 {[%clk 0:00:36]} 62. Kg6 {[%clk 0:00:06]}  b4 {[%clk 0:00:35]} 63. Rg4 {[%clk 0:00:05]}  b3 {[%clk 0:00:34]} 64. Ra4 {[%clk 0:00:06]}  a2 {[%clk 0:00:34]} 65. Ra3 {[%clk 0:00:06]}  Kc2 {[%clk 0:00:34]} 66. h7 {[%clk 0:00:07]}  Kb2 {[%clk 0:00:34]} 67. Ra7 {[%clk 0:00:05]}  a1=Q {[%clk 0:00:33]} 68. Rxa1 {[%clk 0:00:06]}  Kxa1 {[%clk 0:00:34]} 69. Kg7 {[%clk 0:00:07]}  b2 {[%clk 0:00:34]} 70. Kg8 {[%clk 0:00:07]}  Rxh7 {[%clk 0:00:33]} 71. Kxh7 {[%clk 0:00:07]}  b1=Q+ {[%clk 0:00:33]} 72. Kh8 {[%clk 0:00:08]}  Qb7 {[%clk 0:00:33]} 73. Kg8 {[%clk 0:00:09]}  Kb2 {[%clk 0:00:33]} 0-1


[Site "https://www.chess.com"]

[Event "Titled Tuesday Blitz April 25 Late 2023"]
[White "Meunier-Pion, Jean"]
[Black "Bruedigam, Martin"]
[WhiteFideId "20685327"]
[BlackFideId "24608033"]
[WhiteElo "2124"]
[BlackElo "2331"]
[Result "1/2-1/2"]
[Round "10"]
[TimeControl "180+2"]
[Date "2023.04.25"]
[WhiteClock "0:00:06"]
[BlackClock "0:00:18"]

1. e4 {[%clk 0:03:00]}  c6 {[%clk 0:02:59]} 2. d4 {[%clk 0:03:00]}  d5 {[%clk 0:03:00]} 3. Nc3 {[%clk 0:03:00]}  dxe4 {[%clk 0:03:00]} 4. Nxe4 {[%clk 0:03:01]}  Bf5 {[%clk 0:03:00]} 5. Ng3 {[%clk 0:03:01]}  Bg6 {[%clk 0:03:01]} 6. Nf3 {[%clk 0:03:02]}  Nd7 {[%clk 0:02:58]} 7. h4 {[%clk 0:02:59]}  h6 {[%clk 0:02:58]} 8. h5 {[%clk 0:02:55]}  Bh7 {[%clk 0:02:58]} 9. Bd3 {[%clk 0:02:56]}  Bxd3 {[%clk 0:02:58]} 10. Qxd3 {[%clk 0:02:56]}  e6 {[%clk 0:02:59]} 11. Bd2 {[%clk 0:02:56]}  Ngf6 {[%clk 0:02:58]} 12. O-O-O {[%clk 0:02:56]}  Be7 {[%clk 0:02:58]} 13. Ne2 {[%clk 0:02:51]}  Qb6 {[%clk 0:02:45]} 14. Ne5 {[%clk 0:02:46]}  O-O {[%clk 0:02:28]} 15. g4 {[%clk 0:02:30]}  Qb5 {[%clk 0:01:47]} 16. Nxd7 {[%clk 0:02:09]}  Nxd7 {[%clk 0:01:45]} 17. Qxb5 {[%clk 0:02:01]}  cxb5 {[%clk 0:01:45]} 18. f4 {[%clk 0:01:59]}  Nb6 {[%clk 0:01:40]} 19. b3 {[%clk 0:01:55]}  Nd5 {[%clk 0:01:38]} 20. g5 {[%clk 0:01:51]}  Rac8 {[%clk 0:01:34]} 21. Rdg1 {[%clk 0:01:40]}  Kh7 {[%clk 0:01:33]} 22. g6+ {[%clk 0:01:36]}  Kh8 {[%clk 0:01:33]} 23. Kb2 {[%clk 0:01:26]}  f5 {[%clk 0:01:25]} 24. c3 {[%clk 0:00:57]}  Rfd8 {[%clk 0:01:17]} 25. a3 {[%clk 0:00:39]}  Kg8 {[%clk 0:01:14]} 26. Nc1 {[%clk 0:00:28]}  Nf6 {[%clk 0:01:11]} 27. Re1 {[%clk 0:00:24]}  Ne4 {[%clk 0:01:11]} 28. Rxe4 {[%clk 0:00:24]}  fxe4 {[%clk 0:01:11]} 29. Re1 {[%clk 0:00:25]}  Rd5 {[%clk 0:01:10]} 30. Rxe4 {[%clk 0:00:25]}  Rc6 {[%clk 0:01:06]} 31. Nd3 {[%clk 0:00:21]}  Rxh5 {[%clk 0:01:06]} 32. Ne5 {[%clk 0:00:20]}  Ra6 {[%clk 0:01:01]} 33. b4 {[%clk 0:00:11]}  Rh2 {[%clk 0:00:58]} 34. Kc2 {[%clk 0:00:11]}  Rxa3 {[%clk 0:00:56]} 35. Nf3 {[%clk 0:00:11]}  Rf2 {[%clk 0:00:54]} 36. Rxe6 {[%clk 0:00:11]}  Rxf3 {[%clk 0:00:49]} 37. Rxe7 {[%clk 0:00:11]}  Kf8 {[%clk 0:00:49]} 38. Rf7+ {[%clk 0:00:10]}  Ke8 {[%clk 0:00:49]} 39. Rxg7 {[%clk 0:00:11]}  Ra2+ {[%clk 0:00:46]} 40. Kb3 {[%clk 0:00:11]}  Rxd2 {[%clk 0:00:46]} 41. Rxb7 {[%clk 0:00:11]}  Rxf4 {[%clk 0:00:43]} 42. g7 {[%clk 0:00:11]}  Rg4 {[%clk 0:00:43]} 43. Rxa7 {[%clk 0:00:10]}  Rdg2 {[%clk 0:00:42]} 44. Rb7 {[%clk 0:00:10]}  Rxg7 {[%clk 0:00:40]} 45. Rxb5 {[%clk 0:00:10]}  Rh7 {[%clk 0:00:34]} 46. c4 {[%clk 0:00:07]}  h5 {[%clk 0:00:34]} 47. c5 {[%clk 0:00:07]}  h4 {[%clk 0:00:35]} 48. c6 {[%clk 0:00:07]}  Rgg7 {[%clk 0:00:28]} 49. Rb8+ {[%clk 0:00:07]}  Kf7 {[%clk 0:00:28]} 50. c7 {[%clk 0:00:07]}  Rg3+ {[%clk 0:00:18]} 51. Kb2 {[%clk 0:00:07]}  Rg2+ {[%clk 0:00:18]} 52. Kb3 {[%clk 0:00:08]}  Rg3+ {[%clk 0:00:18]} 53. Kb2 {[%clk 0:00:08]}  Rg2+ {[%clk 0:00:18]} 54. Kb3 {[%clk 0:00:06]}  Rg3+ {[%clk 0:00:18]} 1/2-1/2


[Site "https://www.chess.com"]

[Event "Titled Tuesday Blitz April 25 Late 2023"]
[White "Vlassov, Nikolai"]
[Black "Liu, Casper"]
[WhiteFideId "4103360"]
[BlackFideId "1454153"]
[WhiteElo "2324"]
[BlackElo "2221"]
[Result "0-1"]
[Round "10"]
[TimeControl "180+2"]
[Date "2023.04.25"]
[WhiteClock "0:00:12"]
[BlackClock "0:00:23"]

1. e4 {[%clk 0:03:00]}  e5 {[%clk 0:02:56]} 2. Bc4 {[%clk 0:03:00]}  Nf6 {[%clk 0:02:55]} 3. d3 {[%clk 0:03:00]}  c6 {[%clk 0:02:55]} 4. Nf3 {[%clk 0:03:00]}  d5 {[%clk 0:02:55]} 5. Bb3 {[%clk 0:03:00]}  dxe4 {[%clk 0:02:55]} 6. Ng5 {[%clk 0:02:59]}  Be6 {[%clk 0:02:34]} 7. Bxe6 {[%clk 0:02:58]}  fxe6 {[%clk 0:02:35]} 8. dxe4 {[%clk 0:02:58]}  Qxd1+ {[%clk 0:02:34]} 9. Kxd1 {[%clk 0:02:58]}  Ke7 {[%clk 0:02:29]} 10. f3 {[%clk 0:02:57]}  h6 {[%clk 0:02:28]} 11. Nh3 {[%clk 0:02:57]}  Kf7 {[%clk 0:02:28]} 12. Ke2 {[%clk 0:02:56]}  Bc5 {[%clk 0:02:29]} 13. Nd2 {[%clk 0:02:42]}  Nbd7 {[%clk 0:02:25]} 14. Nc4 {[%clk 0:02:31]}  b5 {[%clk 0:02:25]} 15. Na5 {[%clk 0:02:30]}  Rac8 {[%clk 0:02:24]} 16. Rd1 {[%clk 0:02:28]}  Bb4 {[%clk 0:02:20]} 17. Bd2 {[%clk 0:02:23]}  Bxa5 {[%clk 0:02:10]} 18. Bxa5 {[%clk 0:02:22]}  c5 {[%clk 0:02:10]} 19. Rd6 {[%clk 0:02:11]}  Ke7 {[%clk 0:02:10]} 20. Rad1 {[%clk 0:02:04]}  Rb8 {[%clk 0:02:08]} 21. Rc6 {[%clk 0:01:46]}  Rb7 {[%clk 0:02:07]} 22. Bc7 {[%clk 0:01:42]}  Ne8 {[%clk 0:01:57]} 23. Nf2 {[%clk 0:01:38]}  Rxc7 {[%clk 0:01:54]} 24. Ra6 {[%clk 0:01:35]}  Nb8 {[%clk 0:01:46]} 25. Ra3 {[%clk 0:01:31]}  Nd6 {[%clk 0:01:44]} 26. Nd3 {[%clk 0:01:26]}  Nc4 {[%clk 0:01:43]} 27. Rc3 {[%clk 0:01:23]}  Nd7 {[%clk 0:01:42]} 28. a4 {[%clk 0:01:19]}  a6 {[%clk 0:01:41]} 29. Ra1 {[%clk 0:01:05]}  Rhc8 {[%clk 0:01:37]} 30. axb5 {[%clk 0:01:03]}  axb5 {[%clk 0:01:38]} 31. Ra6 {[%clk 0:01:02]}  Nd6 {[%clk 0:01:32]} 32. Rca3 {[%clk 0:00:58]}  Rb7 {[%clk 0:01:24]} 33. b3 {[%clk 0:00:54]}  c4 {[%clk 0:01:20]} 34. Nb4 {[%clk 0:00:53]}  Rbc7 {[%clk 0:01:17]} 35. R3a5 {[%clk 0:00:44]}  cxb3 {[%clk 0:01:16]} 36. cxb3 {[%clk 0:00:44]}  Rc3 {[%clk 0:01:16]} 37. Ra3 {[%clk 0:00:38]}  Rc1 {[%clk 0:01:12]} 38. Kd2 {[%clk 0:00:27]}  Rg1 {[%clk 0:00:44]} 39. Nc6+ {[%clk 0:00:27]}  Kf7 {[%clk 0:00:30]} 40. g3 {[%clk 0:00:23]}  Rg2+ {[%clk 0:00:29]} 41. Ke3 {[%clk 0:00:20]}  Ne8 {[%clk 0:00:20]} 42. b4 {[%clk 0:00:18]}  Kf6 {[%clk 0:00:20]} 43. Rd3 {[%clk 0:00:15]}  Nb8 {[%clk 0:00:19]} 44. Nxb8 {[%clk 0:00:15]}  Rxb8 {[%clk 0:00:20]} 45. Rd7 {[%clk 0:00:14]}  Rb2 {[%clk 0:00:20]} 46. Raa7 {[%clk 0:00:14]}  Rxb4 {[%clk 0:00:21]} 47. h4 {[%clk 0:00:11]}  h5 {[%clk 0:00:21]} 48. g4 {[%clk 0:00:11]}  hxg4 {[%clk 0:00:21]} 49. fxg4 {[%clk 0:00:11]}  Rb3+ {[%clk 0:00:22]} 50. Kf2 {[%clk 0:00:11]}  Rc8 {[%clk 0:00:23]} 51. h5 {[%clk 0:00:12]}  Kg5 {[%clk 0:00:23]} 0-1


[Site "https://www.chess.com"]

[Event "Titled Tuesday Blitz April 25 Late 2023"]
[White "Bueno, Alfeu Junior Varela"]
[Black "Roebers, Eline"]
[WhiteFideId "2108879"]
[BlackFideId "1058401"]
[WhiteElo "2175"]
[BlackElo "2356"]
[Result "0-1"]
[Round "10"]
[TimeControl "180+2"]
[Date "2023.04.25"]
[WhiteClock "0:00:03"]
[BlackClock "0:01:03"]

1. e4 {[%clk 0:03:00]}  c5 {[%clk 0:02:58]} 2. Nc3 {[%clk 0:03:01]}  e6 {[%clk 0:02:58]} 3. f4 {[%clk 0:03:01]}  d5 {[%clk 0:02:57]} 4. Nf3 {[%clk 0:03:01]}  Nc6 {[%clk 0:02:55]} 5. Bb5 {[%clk 0:03:01]}  Ne7 {[%clk 0:02:52]} 6. exd5 {[%clk 0:03:01]}  exd5 {[%clk 0:02:52]} 7. Qe2 {[%clk 0:03:01]}  g6 {[%clk 0:02:40]} 8. Qe5 {[%clk 0:02:52]}  Rg8 {[%clk 0:02:39]} 9. Bxc6+ {[%clk 0:02:52]}  bxc6 {[%clk 0:02:39]} 10. O-O {[%clk 0:02:49]}  Bg7 {[%clk 0:02:39]} 11. Qe2 {[%clk 0:02:47]}  Kf8 {[%clk 0:02:37]} 12. Rb1 {[%clk 0:02:37]}  Nf5 {[%clk 0:02:32]} 13. Na4 {[%clk 0:02:28]}  c4 {[%clk 0:02:18]} 14. b3 {[%clk 0:02:26]}  Rh8 {[%clk 0:02:16]} 15. Ne5 {[%clk 0:02:15]}  Nd4 {[%clk 0:02:06]} 16. Ba3+ {[%clk 0:02:06]}  Kg8 {[%clk 0:02:05]} 17. Qf2 {[%clk 0:02:06]}  Nxc2 {[%clk 0:01:50]} 18. Nxc6 {[%clk 0:02:03]}  Qc7 {[%clk 0:01:47]} 19. Ne7+ {[%clk 0:02:03]}  Qxe7 {[%clk 0:01:47]} 20. Bxe7 {[%clk 0:02:02]}  Bd4 {[%clk 0:01:47]} 21. Qxd4 {[%clk 0:01:24]}  Nxd4 {[%clk 0:01:48]} 22. Bf6 {[%clk 0:01:25]}  Ne2+ {[%clk 0:01:41]} 23. Kh1 {[%clk 0:01:21]}  Bg4 {[%clk 0:01:34]} 24. Rfe1 {[%clk 0:01:11]}  h5 {[%clk 0:01:32]} 25. Bxh8 {[%clk 0:01:07]}  Kxh8 {[%clk 0:01:31]} 26. h3 {[%clk 0:01:08]}  Bf5 {[%clk 0:01:29]} 27. Rb2 {[%clk 0:01:00]}  Nxf4 {[%clk 0:01:28]} 28. bxc4 {[%clk 0:00:56]}  Nd3 {[%clk 0:01:27]} 29. Re3 {[%clk 0:00:21]}  Nxb2 {[%clk 0:01:25]} 30. Nxb2 {[%clk 0:00:22]}  dxc4 {[%clk 0:01:22]} 31. Nxc4 {[%clk 0:00:21]}  Be6 {[%clk 0:01:22]} 32. Nd6 {[%clk 0:00:17]}  Rd8 {[%clk 0:01:20]} 33. Nb5 {[%clk 0:00:15]}  Rxd2 {[%clk 0:01:19]} 34. Nxa7 {[%clk 0:00:13]}  Rxa2 {[%clk 0:01:19]} 35. Nb5 {[%clk 0:00:13]}  Bd5 {[%clk 0:01:17]} 36. Rg3 {[%clk 0:00:12]}  Rd2 {[%clk 0:01:12]} 37. Nc3 {[%clk 0:00:11]}  Bc6 {[%clk 0:01:10]} 38. Kh2 {[%clk 0:00:10]}  Kg7 {[%clk 0:01:06]} 39. h4 {[%clk 0:00:03]}  f5 {[%clk 0:01:03]} 0-1


[Site "https://www.chess.com"]